[Event "Late-Titled-Tuesday-Blitz-February-20-2024"]
[Site "Chess.com"]
[Date "2024.02.20"]
[Round "2"]
[White "manitodeplomo"]
[Black "Hikaru"]
[Result "0-1"]
[WhiteElo "2655"]
[BlackElo "3247"]
[TimeControl "180+1"]
[EndTime "14:13:07 PST"]
[Termination "Hikaru won by resignation"]

1. d4 {[%clk 0:03:00.9]} 1... a6 {[%clk 0:02:58.7]} 2. e4 {[%clk 0:02:59.7]}
2... b5 {[%clk 0:02:58.7]} 3. Bd3 {[%clk 0:02:58.4]} 3... Bb7 {[%clk 0:02:59.1]}
4. Nf3 {[%clk 0:02:58.6]} 4... e6 {[%clk 0:02:59.7]} 5. O-O {[%clk 0:02:58.3]}
5... c5 {[%clk 0:02:57.7]} 6. c3 {[%clk 0:02:57.4]} 6... d5 {[%clk 0:02:57]} 7.
e5 {[%clk 0:02:56.2]} 7... Nd7 {[%clk 0:02:57]} 8. Ng5 {[%clk 0:02:56.1]} 8...
g6 {[%clk 0:02:54.3]} 9. Qg4 {[%clk 0:02:54.1]} 9... Ne7 {[%clk 0:02:50.6]} 10.
Nd2 {[%clk 0:02:49.4]} 10... Nf5 {[%clk 0:02:49.3]} 11. Ndf3 {[%clk 0:02:47.1]}
11... Qb6 {[%clk 0:02:45.8]} 12. Qf4 {[%clk 0:02:41.2]} 12... h6 {[%clk
0:02:38.4]} 13. Nxf7 {[%clk 0:01:58.9]} 13... Kxf7 {[%clk 0:02:38.4]} 14. g4
{[%clk 0:01:58.4]} 14... g5 {[%clk 0:02:35.7]} 15. Nxg5+ {[%clk 0:01:56.6]}
15... hxg5 {[%clk 0:02:36]} 16. Qxg5 {[%clk 0:01:44.7]} 16... Be7 {[%clk
0:02:24.6]} 17. gxf5 {[%clk 0:01:38.5]} 17... Bxg5 {[%clk 0:02:24]} 18. Bxg5
{[%clk 0:01:36.8]} 18... Rag8 {[%clk 0:02:22.1]} 19. f4 {[%clk 0:01:31.8]} 19...
cxd4 {[%clk 0:02:22.4]} 20. fxe6+ {[%clk 0:01:25.9]} 20... Qxe6 {[%clk
0:02:23.3]} 21. cxd4 {[%clk 0:01:23.2]} 21... Qh3 {[%clk 0:02:21.9]} 0-1

[Event "Late-Titled-Tuesday-Blitz-February-20-2024"]
[Site "Chess.com"]
[Date "2024.02.20"]
[Round "2"]
[White "DraningWaterHi"]
[Black "LeninGuerra"]
[Result "0-1"]
[WhiteElo "2241"]
[BlackElo "2566"]
[TimeControl "180+1"]
[EndTime "14:13:30 PST"]
[Termination "LeninGuerra won by resignation"]

1. d4 {[%clk 0:03:00.9]} 1... Nf6 {[%clk 0:02:59.2]} 2. c4 {[%clk 0:02:54.2]}
2... c5 {[%clk 0:02:59.5]} 3. d5 {[%clk 0:02:54.2]} 3... b5 {[%clk 0:03:00]} 4.
cxb5 {[%clk 0:02:54.4]} 4... a6 {[%clk 0:03:00.6]} 5. bxa6 {[%clk 0:02:55]} 5...
Bxa6 {[%clk 0:03:00.7]} 6. Nc3 {[%clk 0:02:55.1]} 6... d6 {[%clk 0:03:01.2]} 7.
e4 {[%clk 0:02:54.9]} 7... Bxf1 {[%clk 0:03:00.1]} 8. Kxf1 {[%clk 0:02:55.8]}
8... Nbd7 {[%clk 0:03:00]} 9. Nf3 {[%clk 0:02:56.2]} 9... g6 {[%clk 0:03:00.7]}
10. g3 {[%clk 0:02:56.6]} 10... Bg7 {[%clk 0:03:01.3]} 11. Kg2 {[%clk
0:02:57.1]} 11... O-O {[%clk 0:03:01.9]} 12. h3 {[%clk 0:02:57.7]} 12... Ra6
{[%clk 0:03:02.2]} 13. Qc2 {[%clk 0:02:58]} 13... Qa8 {[%clk 0:03:02.6]} 14. Bd2
{[%clk 0:02:53.6]} 14... Rb8 {[%clk 0:03:03]} 15. Rhb1 {[%clk 0:02:53.2]} 15...
c4 {[%clk 0:02:51.8]} 16. Nd4 {[%clk 0:02:46.3]} 16... Nc5 {[%clk 0:02:51.8]}
17. Nc6 {[%clk 0:02:45.3]} 17... Re8 {[%clk 0:02:42.8]} 18. Nb5 {[%clk
0:02:41.5]} 18... Rxc6 {[%clk 0:02:40]} 19. dxc6 {[%clk 0:02:39.9]} 19... Qxc6
{[%clk 0:02:40.6]} 20. Nd4 {[%clk 0:02:39.2]} 20... Qa8 {[%clk 0:02:15.3]} 21.
f3 {[%clk 0:02:37]} 21... Nfxe4 {[%clk 0:02:14.4]} 22. fxe4 {[%clk 0:02:31.4]}
22... Bxd4 {[%clk 0:02:02.4]} 23. Re1 {[%clk 0:02:30.6]} 23... Rb8 {[%clk
0:01:54]} 24. Qxc4 {[%clk 0:02:25.9]} 24... Nxe4 {[%clk 0:01:42.5]} 25. Qxd4
{[%clk 0:02:12.5]} 25... Nxd2+ {[%clk 0:01:38.8]} 26. Kf2 {[%clk 0:02:07.8]}
26... Qf3+ {[%clk 0:01:28.6]} 27. Kg1 {[%clk 0:02:07.9]} 27... Qxg3+ {[%clk
0:01:29]} 28. Kh1 {[%clk 0:02:07.9]} 28... Qxh3+ {[%clk 0:01:29.3]} 29. Kg1
{[%clk 0:02:08.2]} 29... Nf3+ {[%clk 0:01:29.5]} 0-1

[Event "Late-Titled-Tuesday-Blitz-February-20-2024"]
[Site "Chess.com"]
[Date "2024.02.20"]
[Round "2"]
[White "traviscottofficial"]
[Black "David_George21"]
[Result "1-0"]
[WhiteElo "2724"]
[BlackElo "2377"]
[TimeControl "180+1"]
[EndTime "14:13:34 PST"]
[Termination "traviscottofficial won by resignation"]

1. e4 {[%clk 0:03:00]} 1... c5 {[%clk 0:02:58.7]} 2. Nf3 {[%clk 0:03:00]} 2...
d6 {[%clk 0:02:57.7]} 3. d4 {[%clk 0:03:00.5]} 3... cxd4 {[%clk 0:02:58.6]} 4.
Nxd4 {[%clk 0:03:01.4]} 4... Nf6 {[%clk 0:02:58.6]} 5. f3 {[%clk 0:03:02.1]}
5... Nc6 {[%clk 0:02:57]} 6. c4 {[%clk 0:03:02]} 6... a6 {[%clk 0:02:53.9]} 7.
Nc3 {[%clk 0:02:56.9]} 7... g6 {[%clk 0:02:52.9]} 8. Be3 {[%clk 0:02:54.3]} 8...
Bg7 {[%clk 0:02:52.6]} 9. Be2 {[%clk 0:02:54.9]} 9... O-O {[%clk 0:02:52.4]} 10.
O-O {[%clk 0:02:55.6]} 10... Bd7 {[%clk 0:02:42.1]} 11. Qd2 {[%clk 0:02:55.3]}
11... Rc8 {[%clk 0:02:38.3]} 12. b3 {[%clk 0:02:55.4]} 12... e5 {[%clk
0:02:31.3]} 13. Nxc6 {[%clk 0:02:36.6]} 13... Bxc6 {[%clk 0:02:30.7]} 14. Rad1
{[%clk 0:02:21.3]} 14... Qa5 {[%clk 0:02:29.8]} 15. Nd5 {[%clk 0:02:17.9]} 15...
Qxd2 {[%clk 0:02:28.9]} 16. Ne7+ {[%clk 0:02:17.5]} 16... Kh8 {[%clk 0:02:26]}
17. Rxd2 {[%clk 0:02:18.4]} 17... Rcd8 {[%clk 0:02:24.2]} 18. Rfd1 {[%clk
0:02:11.1]} 18... Ne8 {[%clk 0:02:18.6]} 19. c5 {[%clk 0:01:53.4]} 19... f5
{[%clk 0:01:48.7]} 20. Nxc6 {[%clk 0:01:48.7]} 20... bxc6 {[%clk 0:01:47.2]} 21.
cxd6 {[%clk 0:01:47.2]} 21... Rf6 {[%clk 0:01:42.8]} 22. d7 {[%clk 0:01:45.5]}
22... Nc7 {[%clk 0:01:42.4]} 23. Bb6 {[%clk 0:01:45.1]} 1-0

[Event "Late-Titled-Tuesday-Blitz-February-20-2024"]
[Site "Chess.com"]
[Date "2024.02.20"]
[Round "2"]
[White "Mikasinski"]
[Black "DonJuanEGenaro"]
[Result "1-0"]
[WhiteElo "2659"]
[BlackElo "2102"]
[TimeControl "180+1"]
[EndTime "14:13:49 PST"]
[Termination "Mikasinski won by resignation"]

1. e4 {[%clk 0:03:00.9]} 1... c5 {[%clk 0:02:59.6]} 2. Nf3 {[%clk 0:03:00.6]}
2... Nc6 {[%clk 0:02:59.6]} 3. d4 {[%clk 0:03:00.6]} 3... cxd4 {[%clk
0:02:58.9]} 4. Nxd4 {[%clk 0:03:01.5]} 4... Nf6 {[%clk 0:02:58.7]} 5. Nc3 {[%clk
0:03:01.6]} 5... d6 {[%clk 0:02:58.8]} 6. Bg5 {[%clk 0:03:00.6]} 6... Qb6 {[%clk
0:02:57]} 7. Nb3 {[%clk 0:02:58.2]} 7... e6 {[%clk 0:02:56.1]} 8. Qd2 {[%clk
0:02:57.6]} 8... a6 {[%clk 0:02:56.1]} 9. O-O-O {[%clk 0:02:56.2]} 9... Bd7
{[%clk 0:02:55.8]} 10. Kb1 {[%clk 0:02:55.7]} 10... Qc7 {[%clk 0:02:47.9]} 11.
Be2 {[%clk 0:02:48.6]} 11... b5 {[%clk 0:02:46.5]} 12. Bf3 {[%clk 0:02:38.7]}
12... Ne5 {[%clk 0:02:44.7]} 13. Rhe1 {[%clk 0:02:24.8]} 13... Be7 {[%clk
0:02:36]} 14. Bxf6 {[%clk 0:02:23.7]} 14... Nc4 {[%clk 0:02:18.3]} 15. Qc1
{[%clk 0:02:15.2]} 15... Bxf6 {[%clk 0:02:17.8]} 16. e5 {[%clk 0:02:15.6]} 16...
Bxe5 {[%clk 0:01:52.9]} 17. Rxe5 {[%clk 0:02:12.5]} 17... Nxe5 {[%clk
0:01:48.7]} 18. Bxa8 {[%clk 0:02:12.5]} 18... d5 {[%clk 0:01:47.3]} 19. Bxd5
{[%clk 0:02:10.2]} 19... exd5 {[%clk 0:01:46.4]} 20. Nxd5 {[%clk 0:02:10.8]}
20... Qb7 {[%clk 0:01:44.9]} 21. Qe3 {[%clk 0:02:06.2]} 21... O-O {[%clk
0:01:26.7]} 22. Qxe5 {[%clk 0:02:06]} 22... Re8 {[%clk 0:01:26.5]} 23. Qc3
{[%clk 0:02:02.2]} 23... b4 {[%clk 0:01:23.7]} 24. Qxb4 {[%clk 0:02:00.8]} 24...
Qc6 {[%clk 0:01:12.4]} 25. Ne7+ {[%clk 0:02:00.2]} 1-0

[Event "Late-Titled-Tuesday-Blitz-February-20-2024"]
[Site "Chess.com"]
[Date "2024.02.20"]
[Round "2"]
[White "thechesscorner64"]
[Black "stollenmonster"]
[Result "0-1"]
[WhiteElo "2536"]
[BlackElo "2863"]
[TimeControl "180+1"]
[EndTime "14:14:00 PST"]
[Termination "stollenmonster won by resignation"]

1. e4 {[%clk 0:03:00.9]} 1... c5 {[%clk 0:02:59.7]} 2. Nf3 {[%clk 0:03:00.7]}
2... Nf6 {[%clk 0:03:00.1]} 3. d3 {[%clk 0:02:59]} 3... Nc6 {[%clk 0:02:59.7]}
4. g3 {[%clk 0:02:58.9]} 4... d5 {[%clk 0:03:00.1]} 5. Nbd2 {[%clk 0:02:58.9]}
5... g6 {[%clk 0:03:00.3]} 6. Bg2 {[%clk 0:02:59]} 6... Bg7 {[%clk 0:03:01]} 7.
O-O {[%clk 0:02:59.4]} 7... O-O {[%clk 0:03:01.6]} 8. Re1 {[%clk 0:02:59.9]}
8... e5 {[%clk 0:03:01.8]} 9. exd5 {[%clk 0:02:59.9]} 9... Nxd5 {[%clk
0:03:02.7]} 10. Nc4 {[%clk 0:03:00.3]} 10... Re8 {[%clk 0:03:02.8]} 11. a4
{[%clk 0:03:00.2]} 11... Nb6 {[%clk 0:03:00.9]} 12. Bg5 {[%clk 0:02:57.3]} 12...
Qc7 {[%clk 0:03:01]} 13. Na3 {[%clk 0:02:52.2]} 13... Be6 {[%clk 0:02:54.9]} 14.
Nb5 {[%clk 0:02:50.8]} 14... Qd7 {[%clk 0:02:55.1]} 15. a5 {[%clk 0:02:47.5]}
15... Nd5 {[%clk 0:02:54.1]} 16. Bd2 {[%clk 0:02:42.2]} 16... h6 {[%clk
0:02:50.6]} 17. Qc1 {[%clk 0:02:36.9]} 17... Kh7 {[%clk 0:02:50.1]} 18. h4
{[%clk 0:02:36.7]} 18... Rad8 {[%clk 0:02:44.7]} 19. Nc3 {[%clk 0:02:35.8]}
19... Nxc3 {[%clk 0:02:34.8]} 20. Bxc3 {[%clk 0:02:34.9]} 20... Bd5 {[%clk
0:02:32.7]} 21. h5 {[%clk 0:02:32.3]} 21... g5 {[%clk 0:02:32.2]} 22. b3 {[%clk
0:02:20.5]} 22... f5 {[%clk 0:02:30.5]} 23. a6 {[%clk 0:02:14.9]} 23... b6
{[%clk 0:02:28.3]} 24. Nxg5+ {[%clk 0:01:43.7]} 24... hxg5 {[%clk 0:02:27.6]}
25. Qxg5 {[%clk 0:01:44.6]} 25... Qf7 {[%clk 0:02:24.1]} 26. Bh3 {[%clk
0:01:42.8]} 26... Be6 {[%clk 0:02:22.6]} 27. f4 {[%clk 0:01:31.4]} 27... Bh6
{[%clk 0:02:19.9]} 28. Qh4 {[%clk 0:01:31.1]} 28... exf4 {[%clk 0:02:19]} 29.
gxf4 {[%clk 0:01:21.6]} 29... Nd4 {[%clk 0:02:18.4]} 30. Bxd4 {[%clk 0:01:19.9]}
30... Rxd4 {[%clk 0:02:18.9]} 31. Re5 {[%clk 0:01:09.4]} 31... Bxf4 {[%clk
0:02:15.4]} 32. Rae1 {[%clk 0:01:06.6]} 32... Bxe5 {[%clk 0:02:10.7]} 33. Rxe5
{[%clk 0:01:06.2]} 33... Rxh4 {[%clk 0:02:10.3]} 0-1

[Event "Late-Titled-Tuesday-Blitz-February-20-2024"]
[Site "Chess.com"]
[Date "2024.02.20"]
[Round "2"]
[White "aa175"]
[Black "vanyakuba"]
[Result "1-0"]
[WhiteElo "2693"]
[BlackElo "2373"]
[TimeControl "180+1"]
[EndTime "14:14:03 PST"]
[Termination "aa175 won by resignation"]

1. d4 {[%clk 0:03:00.9]} 1... d5 {[%clk 0:02:59.7]} 2. Bf4 {[%clk 0:03:01.8]}
2... c5 {[%clk 0:02:58.1]} 3. e3 {[%clk 0:03:02.7]} 3... Nc6 {[%clk 0:02:57.2]}
4. Nf3 {[%clk 0:03:03]} 4... Nf6 {[%clk 0:02:57.4]} 5. Nbd2 {[%clk 0:03:03.4]}
5... g6 {[%clk 0:02:57]} 6. c3 {[%clk 0:03:03.6]} 6... Bg7 {[%clk 0:02:57.3]} 7.
Bd3 {[%clk 0:03:04.3]} 7... O-O {[%clk 0:02:55.6]} 8. h4 {[%clk 0:03:05]} 8...
Bg4 {[%clk 0:02:53.1]} 9. Be2 {[%clk 0:03:04]} 9... Ne4 {[%clk 0:02:34]} 10.
Nxe4 {[%clk 0:03:02.9]} 10... dxe4 {[%clk 0:02:33.9]} 11. Ng5 {[%clk 0:03:02.2]}
11... Bxe2 {[%clk 0:02:10.1]} 12. Qxe2 {[%clk 0:03:03.1]} 12... cxd4 {[%clk
0:02:04]} 13. exd4 {[%clk 0:03:04]} 13... e5 {[%clk 0:01:55.1]} 14. dxe5 {[%clk
0:03:04.9]} 14... Nxe5 {[%clk 0:01:53.1]} 15. Bxe5 {[%clk 0:03:05.7]} 15... Bxe5
{[%clk 0:01:52.8]} 16. Nxe4 {[%clk 0:03:06.6]} 16... Re8 {[%clk 0:01:46.2]} 17.
h5 {[%clk 0:03:06.9]} 17... Bg7 {[%clk 0:01:18.1]} 18. hxg6 {[%clk 0:03:06.4]}
18... hxg6 {[%clk 0:01:16.9]} 19. O-O {[%clk 0:03:06.7]} 19... Qh4 {[%clk
0:01:04.5]} 20. Rfe1 {[%clk 0:03:04.3]} 20... Rad8 {[%clk 0:00:31.3]} 21. g3
{[%clk 0:03:03.7]} 21... Qh3 {[%clk 0:00:26.7]} 22. Qf1 {[%clk 0:03:01.1]} 22...
Qg4 {[%clk 0:00:19.7]} 23. Qg2 {[%clk 0:03:00.5]} 23... f5 {[%clk 0:00:16.5]}
24. Nc5 {[%clk 0:02:59.8]} 24... Rxe1+ {[%clk 0:00:14]} 25. Rxe1 {[%clk
0:03:00.7]} 25... Rd2 {[%clk 0:00:14]} 26. Re8+ {[%clk 0:02:56.3]} 26... Kh7
{[%clk 0:00:14]} 27. Qh1+ {[%clk 0:02:55.8]} 27... Bh6 {[%clk 0:00:13.7]} 28.
Rh8+ {[%clk 0:02:55.6]} 28... Kxh8 {[%clk 0:00:07.6]} 29. Qxh6+ {[%clk
0:02:56.5]} 1-0

[Event "Late-Titled-Tuesday-Blitz-February-20-2024"]
[Site "Chess.com"]
[Date "2024.02.20"]
[Round "2"]
[White "GiorgianBarbosa"]
[Black "emiliochess"]
[Result "1-0"]
[WhiteElo "2507"]
[BlackElo "2298"]
[TimeControl "180+1"]
[EndTime "14:14:11 PST"]
[Termination "GiorgianBarbosa won by resignation"]

1. d4 {[%clk 0:02:59.4]} 1... d5 {[%clk 0:02:59.9]} 2. c4 {[%clk 0:03:00.3]}
2... e6 {[%clk 0:02:58.9]} 3. cxd5 {[%clk 0:03:00.6]} 3... exd5 {[%clk
0:02:59.8]} 4. Nc3 {[%clk 0:03:01.2]} 4... c6 {[%clk 0:03:00.3]} 5. Bf4 {[%clk
0:03:02.1]} 5... Bd6 {[%clk 0:03:00.2]} 6. Bxd6 {[%clk 0:03:01.3]} 6... Qxd6
{[%clk 0:03:01.1]} 7. e3 {[%clk 0:03:01.9]} 7... Ne7 {[%clk 0:03:01.5]} 8. Nf3
{[%clk 0:03:02.2]} 8... O-O {[%clk 0:03:01.4]} 9. Bd3 {[%clk 0:03:02.8]} 9...
Bf5 {[%clk 0:03:01]} 10. Qc2 {[%clk 0:03:02.5]} 10... Bxd3 {[%clk 0:03:00.6]}
11. Qxd3 {[%clk 0:03:03.4]} 11... Nd7 {[%clk 0:03:00.9]} 12. O-O {[%clk
0:03:04.3]} 12... h6 {[%clk 0:03:00.2]} 13. Rab1 {[%clk 0:03:04.7]} 13... f5
{[%clk 0:03:00.1]} 14. b4 {[%clk 0:03:04.4]} 14... a6 {[%clk 0:02:59.8]} 15. a4
{[%clk 0:03:02.7]} 15... Nf6 {[%clk 0:02:58.5]} 16. Ne5 {[%clk 0:03:02.3]} 16...
Ne4 {[%clk 0:02:57.6]} 17. b5 {[%clk 0:02:59.5]} 17... axb5 {[%clk 0:02:57.2]}
18. axb5 {[%clk 0:02:59.1]} 18... f4 {[%clk 0:02:57.5]} 19. Nxe4 {[%clk
0:02:57.9]} 19... dxe4 {[%clk 0:02:54.9]} 20. Qxe4 {[%clk 0:02:57.6]} 20... fxe3
{[%clk 0:02:53.9]} 21. fxe3 {[%clk 0:02:53.6]} 21... Nd5 {[%clk 0:02:54.5]} 22.
bxc6 {[%clk 0:02:50.4]} 22... Nc3 {[%clk 0:02:50.3]} 23. Rxf8+ {[%clk 0:02:23]}
23... Rxf8 {[%clk 0:02:48.1]} 24. Qg6 {[%clk 0:02:14.7]} 24... Qb4 {[%clk
0:02:10.8]} 25. Re1 {[%clk 0:00:54.3]} 25... Ne2+ {[%clk 0:02:05.5]} 26. Rxe2
{[%clk 0:00:53.9]} 1-0

[Event "Late-Titled-Tuesday-Blitz-February-20-2024"]
[Site "Chess.com"]
[Date "2024.02.20"]
[Round "2"]
[White "mjelcic"]
[Black "Statham_01"]
[Result "0-1"]
[WhiteElo "2230"]
[BlackElo "2580"]
[TimeControl "180+1"]
[EndTime "14:14:35 PST"]
[Termination "Statham_01 won by resignation"]

1. d4 {[%clk 0:02:24.2]} 1... e6 {[%clk 0:01:51.5]} 2. e4 {[%clk 0:02:20.2]}
2... d5 {[%clk 0:01:51.3]} 3. e5 {[%clk 0:02:20.7]} 3... Bd7 {[%clk 0:01:51.3]}
4. Nf3 {[%clk 0:02:15.9]} 4... a6 {[%clk 0:01:51.6]} 5. c4 {[%clk 0:02:06.5]}
5... dxc4 {[%clk 0:01:51.4]} 6. Bxc4 {[%clk 0:02:05.8]} 6... Bc6 {[%clk
0:01:51.9]} 7. Nc3 {[%clk 0:02:04.2]} 7... Bb4 {[%clk 0:01:51.7]} 8. O-O {[%clk
0:02:01.2]} 8... Bxc3 {[%clk 0:01:52.2]} 9. bxc3 {[%clk 0:02:01]} 9... Ne7
{[%clk 0:01:52.9]} 10. Bg5 {[%clk 0:01:59.4]} 10... h6 {[%clk 0:01:52]} 11. Bh4
{[%clk 0:01:57.8]} 11... Nd7 {[%clk 0:01:52.1]} 12. a4 {[%clk 0:01:56.2]} 12...
Nb6 {[%clk 0:01:51.9]} 13. Bb3 {[%clk 0:01:55.6]} 13... a5 {[%clk 0:01:45.7]}
14. Qd3 {[%clk 0:01:54.6]} 14... Qd7 {[%clk 0:01:38.5]} 15. Rfd1 {[%clk
0:01:45.9]} 15... O-O-O {[%clk 0:01:35.5]} 16. c4 {[%clk 0:01:45.1]} 16... g5
{[%clk 0:01:23.2]} 17. Bg3 {[%clk 0:01:45]} 17... Ng6 {[%clk 0:01:12.4]} 18. d5
{[%clk 0:01:24.7]} 18... exd5 {[%clk 0:01:13.3]} 19. c5 {[%clk 0:01:23.7]} 19...
Nc4 {[%clk 0:01:07.4]} 20. Bxc4 {[%clk 0:01:23.6]} 20... dxc4 {[%clk 0:01:08.3]}
21. Qxc4 {[%clk 0:01:24.4]} 21... Qxd1+ {[%clk 0:01:06.1]} 22. Rxd1 {[%clk
0:01:16.1]} 22... Rxd1+ {[%clk 0:01:07]} 0-1

[Event "Late-Titled-Tuesday-Blitz-February-20-2024"]
[Site "Chess.com"]
[Date "2024.02.20"]
[Round "2"]
[White "rcmz"]
[Black "agustinv04"]
[Result "1-0"]
[WhiteElo "2186"]
[BlackElo "2431"]
[TimeControl "180+1"]
[EndTime "14:14:37 PST"]
[Termination "rcmz won by resignation"]

1. b4 {[%clk 0:03:00.9]} 1... a5 {[%clk 0:02:59.5]} 2. b5 {[%clk 0:03:00.2]}
2... c6 {[%clk 0:02:59.2]} 3. c4 {[%clk 0:02:58.9]} 3... d5 {[%clk 0:02:59.1]}
4. e3 {[%clk 0:02:57.8]} 4... e6 {[%clk 0:02:59.1]} 5. Bb2 {[%clk 0:02:55.8]}
5... Nf6 {[%clk 0:02:59.6]} 6. Nf3 {[%clk 0:02:55.3]} 6... Nbd7 {[%clk
0:02:58.9]} 7. a3 {[%clk 0:02:47.1]} 7... Bd6 {[%clk 0:02:58.4]} 8. d4 {[%clk
0:02:38.9]} 8... O-O {[%clk 0:02:55.9]} 9. c5 {[%clk 0:02:35.5]} 9... Bb8 {[%clk
0:02:54.7]} 10. bxc6 {[%clk 0:02:32.1]} 10... bxc6 {[%clk 0:02:54.3]} 11. Nbd2
{[%clk 0:02:26.9]} 11... Ne4 {[%clk 0:02:52.5]} 12. Nxe4 {[%clk 0:02:11.1]}
12... dxe4 {[%clk 0:02:53.4]} 13. Nd2 {[%clk 0:02:09.3]} 13... f5 {[%clk
0:02:52.5]} 14. Bc4 {[%clk 0:02:07.7]} 14... Nf6 {[%clk 0:02:52.1]} 15. h3
{[%clk 0:01:52.8]} 15... Nd5 {[%clk 0:02:50.3]} 16. Qc2 {[%clk 0:01:39.8]} 16...
Qh4 {[%clk 0:02:47.9]} 17. Bxd5 {[%clk 0:01:29.1]} 17... exd5 {[%clk 0:02:46.7]}
18. g3 {[%clk 0:01:14.3]} 18... Bxg3 {[%clk 0:02:32.7]} 19. fxg3 {[%clk
0:01:12.9]} 19... Qxg3+ {[%clk 0:02:33.6]} 20. Kd1 {[%clk 0:01:09.9]} 20... Qxe3
{[%clk 0:02:32.5]} 21. Qc3 {[%clk 0:01:01.2]} 21... Qf2 {[%clk 0:02:28.6]} 22.
Rf1 {[%clk 0:00:55.9]} 22... Qh4 {[%clk 0:02:28]} 23. Kc1 {[%clk 0:00:44.1]}
23... Ba6 {[%clk 0:02:26]} 24. Rg1 {[%clk 0:00:41.9]} 24... f4 {[%clk
0:02:24.2]} 25. Nxe4 {[%clk 0:00:40]} 25... dxe4 {[%clk 0:02:23.5]} 26. d5
{[%clk 0:00:39.6]} 26... Kf7 {[%clk 0:02:10.9]} 27. Rxg7+ {[%clk 0:00:25.4]}
27... Ke8 {[%clk 0:02:10.3]} 28. Qe5+ {[%clk 0:00:25.4]} 28... Kd8 {[%clk
0:02:10.4]} 29. Qc7+ {[%clk 0:00:23]} 1-0

[Event "Late-Titled-Tuesday-Blitz-February-20-2024"]
[Site "Chess.com"]
[Date "2024.02.20"]
[Round "2"]
[White "Gentlejimmy7"]
[Black "Shankland"]
[Result "0-1"]
[WhiteElo "2565"]
[BlackElo "2951"]
[TimeControl "180+1"]
[EndTime "14:14:40 PST"]
[Termination "Shankland won by checkmate"]

1. c4 {[%clk 0:02:50.3]} 1... e6 {[%clk 0:02:56.9]} 2. g3 {[%clk 0:02:50.1]}
2... d5 {[%clk 0:02:56.9]} 3. d4 {[%clk 0:02:47]} 3... Nf6 {[%clk 0:02:55.3]} 4.
Nf3 {[%clk 0:02:46.3]} 4... Be7 {[%clk 0:02:54.1]} 5. Bg2 {[%clk 0:02:46.8]}
5... O-O {[%clk 0:02:54.5]} 6. O-O {[%clk 0:02:47.2]} 6... dxc4 {[%clk
0:02:54.8]} 7. Qc2 {[%clk 0:02:25.2]} 7... a6 {[%clk 0:02:53.8]} 8. a4 {[%clk
0:02:24.1]} 8... Bd7 {[%clk 0:02:53.1]} 9. Qxc4 {[%clk 0:02:24.6]} 9... Bc6
{[%clk 0:02:52.8]} 10. Bf4 {[%clk 0:02:25.2]} 10... Nbd7 {[%clk 0:02:49.4]} 11.
Nc3 {[%clk 0:02:23]} 11... Bd6 {[%clk 0:02:43]} 12. Qb3 {[%clk 0:02:15.5]} 12...
a5 {[%clk 0:02:40.3]} 13. Nb5 {[%clk 0:02:11]} 13... Bxf4 {[%clk 0:02:39.4]} 14.
gxf4 {[%clk 0:02:11.9]} 14... Nd5 {[%clk 0:02:38.2]} 15. e3 {[%clk 0:02:11.6]}
15... Kh8 {[%clk 0:02:37]} 16. Rac1 {[%clk 0:02:06.2]} 16... f6 {[%clk
0:02:31.7]} 17. Ne1 {[%clk 0:01:44.6]} 17... f5 {[%clk 0:02:23.2]} 18. Nd3
{[%clk 0:01:43]} 18... g5 {[%clk 0:02:23.1]} 19. Nc3 {[%clk 0:01:23.4]} 19...
N7b6 {[%clk 0:02:08]} 20. Nxd5 {[%clk 0:01:20]} 20... Bxd5 {[%clk 0:02:02.4]}
21. Bxd5 {[%clk 0:01:18.3]} 21... Nxd5 {[%clk 0:02:03]} 22. fxg5 {[%clk
0:01:10.6]} 22... Qxg5+ {[%clk 0:02:01.7]} 23. Kh1 {[%clk 0:01:11.2]} 23... Rf6
{[%clk 0:01:28.2]} 24. f4 {[%clk 0:01:08.3]} 24... Qh5 {[%clk 0:01:27]} 25. Ne5
{[%clk 0:01:06.6]} 25... Rg8 {[%clk 0:01:22.4]} 26. Rg1 {[%clk 0:01:02.7]} 26...
Qxh2+ {[%clk 0:01:22.3]} 27. Kxh2 {[%clk 0:01:01.9]} 27... Rh6# {[%clk
0:01:23.2]} 0-1

[Event "Late-Titled-Tuesday-Blitz-February-20-2024"]
[Site "Chess.com"]
[Date "2024.02.20"]
[Round "2"]
[White "midedu"]
[Black "ChessLebaneseSalah"]
[Result "1-0"]
[WhiteElo "2001"]
[BlackElo "2401"]
[TimeControl "180+1"]
[EndTime "14:14:41 PST"]
[Termination "midedu won by resignation"]

1. e4 {[%clk 0:02:59.4]} 1... c5 {[%clk 0:03:00.2]} 2. Nc3 {[%clk 0:02:57.4]}
2... Nc6 {[%clk 0:03:00.1]} 3. g3 {[%clk 0:02:57.2]} 3... g6 {[%clk 0:02:59.4]}
4. Bg2 {[%clk 0:02:56.6]} 4... Bg7 {[%clk 0:03:00]} 5. Nge2 {[%clk 0:02:55.2]}
5... d6 {[%clk 0:03:00.5]} 6. O-O {[%clk 0:02:54.4]} 6... e6 {[%clk 0:03:01.1]}
7. h3 {[%clk 0:02:54.8]} 7... Nge7 {[%clk 0:03:01.8]} 8. d3 {[%clk 0:02:55.2]}
8... d5 {[%clk 0:03:02.2]} 9. exd5 {[%clk 0:02:51]} 9... exd5 {[%clk 0:03:03.1]}
10. Bg5 {[%clk 0:02:51]} 10... Be6 {[%clk 0:03:01.8]} 11. Nf4 {[%clk 0:02:47.4]}
11... Qd7 {[%clk 0:02:59.3]} 12. Re1 {[%clk 0:02:44.4]} 12... O-O {[%clk
0:02:56.5]} 13. Qd2 {[%clk 0:02:34]} 13... Rfe8 {[%clk 0:02:55.3]} 14. Rad1
{[%clk 0:02:04.6]} 14... Nd4 {[%clk 0:02:54.1]} 15. Bxe7 {[%clk 0:01:58.6]}
15... Rxe7 {[%clk 0:02:53.9]} 16. Ncxd5 {[%clk 0:01:56.5]} 16... Bxd5 {[%clk
0:02:52.8]} 17. Rxe7 {[%clk 0:01:55.9]} 17... Qxe7 {[%clk 0:02:38]} 18. Nxd5
{[%clk 0:01:55.6]} 18... Qd6 {[%clk 0:02:30.9]} 19. c3 {[%clk 0:01:53.3]} 19...
Nc6 {[%clk 0:02:28.4]} 20. Qe3 {[%clk 0:01:50.3]} 20... h5 {[%clk 0:02:24.3]}
21. Re1 {[%clk 0:01:46.3]} 21... Rd8 {[%clk 0:02:23.8]} 22. h4 {[%clk
0:01:45.8]} 22... Ne5 {[%clk 0:02:21.5]} 23. a3 {[%clk 0:01:33.6]} 23... Ng4
{[%clk 0:02:21.3]} 24. Qe7 {[%clk 0:01:28.8]} 24... Qb8 {[%clk 0:02:17.1]} 25.
Qxc5 {[%clk 0:01:23.6]} 25... Ne5 {[%clk 0:02:10.2]} 26. Qe3 {[%clk 0:01:20]}
26... Ng4 {[%clk 0:02:08.8]} 27. Qf4 {[%clk 0:01:16.8]} 27... Be5 {[%clk
0:02:04.2]} 28. Qf3 {[%clk 0:01:14.7]} 28... Bg7 {[%clk 0:02:02.9]} 29. d4
{[%clk 0:01:14.2]} 29... b5 {[%clk 0:02:01.8]} 30. Ne7+ {[%clk 0:01:08.6]} 30...
Kh7 {[%clk 0:01:54.2]} 31. Nc6 {[%clk 0:01:08.3]} 31... Qd6 {[%clk 0:01:51.6]}
32. Nxd8 {[%clk 0:01:08.2]} 32... Qxd8 {[%clk 0:01:52.5]} 33. Qxf7 {[%clk
0:01:08.1]} 33... a5 {[%clk 0:01:48]} 34. Re6 {[%clk 0:01:06.3]} 1-0